bitfinex-derivatives/quotes_SOLF0:USTF0_20251006
["timestamp","ask_amount","ask_price","bid_price","bid_amount"]
[1759789813390,3.8289,234.96,234.9,4.7252632]
[1759789815498,11.6289,234.96,234.93,3.54766311]
[1759789815796,11.6291,234.95,234.93,3.54766311]
[1759789815999,1.5305955,234.99,234.92,3.54766311]
[1759789816199,7.8,234.95,234.9,3.54766311]
[1759789816494,7.8,234.95,234.89,3.54766311]
[1759789817494,7.8,234.95,234.85,309.8]
[1759789817495,7.8,234.94,234.88,3.54766311]
[1759789817791,1.5305955,234.93,234.87,3.54766311]
[1759789817998,7.8,234.92,234.87,3.54766311]
[1759789818190,7.24,234.91,234.87,3.54766311]
[1759789818490,7.24,234.91,234.88,7.96]
[1759789818795,7.24,234.91,234.87,11.50766311]
[1759789818996,8.7705955,234.93,234.87,11.50766311]
[1759789819193,7.24,234.93,234.87,11.50766311]
[1759789819999,11.0694,234.93,234.87,11.50766311]
[1759789820298,7.24,234.93,234.87,3.54766311]
[1759789820497,7.24,234.93,234.87,11.50766311]
[1759789820693,3.8295,234.92,234.87,3.54766311]
[1759789820895,7.24,234.95,234.87,11.50766311]
[1759789822298,7.24,234.95,234.87,7.96]
[1759789822602,3.8292,234.94,234.87,7.96]
[1759789823101,3.8292,234.94,234.87,11.50766311]
[1759789824696,7.24,234.95,234.87,11.50766311]
[1759789824903,7.24,234.95,234.87,7.96]
[1759789825094,7.24,234.95,234.86,3.54766311]
[1759789825402,1.5305955,234.9,234.84,3.54766311]
[1759789826093,7.24,234.89,234.84,3.54766311]
[1759789826297,3.8303,234.88,234.83,3.54766311]
[1759789826492,11.0703,234.88,234.83,11.50766311]
[1759789826697,7.24,234.87,234.83,11.50766311]
[1759789827204,3.8303,234.88,234.84,7.96]
[1759789827404,11.0703,234.88,234.84,7.96]
[1759789828305,11.0703,234.88,234.82,11.50766311]
[1759789830904,11.0705,234.87,234.83,7.96]
[1759789831107,1.5305955,234.87,234.81,3.54766311]
[1759789831411,7.24,234.83,234.79,37.62]
[1759789831608,7.24,234.83,234.78,3.54766311]
[1759789831609,3.8315,234.8,234.75,3.54766311]
[1759789831912,7.24,234.79,234.74,11.50766311]
[1759789832210,3.8316,234.8,234.74,11.50766311]
[1759789832417,7.24,234.8,234.73,3.54766311]
[1759789832812,3.8318,234.79,234.73,3.54766311]
[1759789833313,3.8318,234.79,234.72,3.54766311]
[1759789834407,7.24,234.77,234.71,11.50766311]
[1759789834613,8.7705955,234.75,234.69,3.54766311]
[1759789834810,8.7705955,234.75,234.68,3.54766311]
[1759789835005,8.7705955,234.75,234.69,7.96]
[1759789835814,12.6029955,234.75,234.69,7.96]
[1759789836007,8.7705955,234.75,234.68,3.54766311]
[1759789836209,59.6023,234.8,234.64,3.54766311]
[1759789836210,7.24,234.71,234.64,3.54766311]
[1759789836416,7.24,234.71,234.63,3.54766311]
[1759789837309,1.5305955,234.69,234.61,11.50766311]
[1759789837713,1.5305955,234.69,234.61,7.96]
[1759789838716,5.3639955,234.69,234.61,7.96]
[1759789840217,1.5305955,234.7,234.61,11.7945]
[1759789841216,7.24,234.71,234.61,11.7945]
[1759789841421,8.7705955,234.71,234.61,11.7945]
[1759789843412,1.5305955,234.7,234.64,7.69]
[1759789843613,1.5305955,234.74,234.64,7.69]
[1759789844217,11.7023,234.75,234.64,7.69]
[1759789844421,7.87,234.75,234.68,7.69]
[1759789846924,7.87,234.72,234.62,7.69]
[1759789848527,3.8331,234.7,234.62,7.69]
[1759789850020,3.8335,234.68,234.62,7.69]
[1759789850721,7.95,234.65,234.62,7.69]
[1759789851427,7.95,234.65,234.6,35.37]
[1759789851623,3.8341,234.64,234.6,35.37]
[1759789851821,3.8341,234.64,234.61,7.85]
[1759789853627,1.5305955,234.67,234.61,7.85]
[1759789854427,3.8338,234.66,234.6,27.52]
[1759789854730,3.8338,234.66,234.6,35.37]
[1759789855033,1.5305955,234.67,234.6,35.37]
[1759789855228,7.95,234.66,234.6,35.37]
[1759789856233,5.3642955,234.67,234.6,35.37]
[1759789857129,1.5305955,234.67,234.6,35.37]
[1759789857429,1.5305955,234.68,234.61,7.85]
[1759789857629,1.5305955,234.71,234.61,7.85]
[1759789858233,9.4805955,234.71,234.61,7.85]
[1759789858732,9.4805955,234.71,234.62,7.85]
[1759789859728,13.3136955,234.71,234.62,7.85]
[1759789859929,9.4805955,234.71,234.62,7.85]
[1759789860429,3.8332,234.7,234.62,7.85]
[1759789860636,1.5305955,234.68,234.62,7.85]
[1759789862536,1.5305955,234.69,234.62,7.85]
[1759789863129,3.8333,234.7,234.62,7.85]
[1759789863825,3.8328,234.73,234.62,7.85]
[1759789864431,3.8329,234.72,234.63,3.8341]
[1759789864733,3.8329,234.72,234.6,31.0466442]
[1759789864734,7.95,234.72,234.64,7.85]
[1759789866737,7.95,234.72,234.64,11.6841]
[1759789866934,6.23002105,234.74,234.65,7.85]
[1759789867129,7.95,234.76,234.65,7.85]
[1759789867333,2.39752105,234.78,234.66,3.5266442]
[1759789867634,59.5819,234.88,234.69,7.85]
[1759789867635,2.39752105,234.82,234.69,7.85]
[1759789868626,3.8313,234.81,234.73,7.85]
[1759789870338,0.74153784,234.83,234.75,7.85]
[1759789870530,11.7809,234.84,234.75,7.85]
[1759789870845,7.95,234.84,234.76,7.85]
[1759789872639,3.8307,234.85,234.76,7.85]
[1759789873535,3.8307,234.85,234.75,7.3587442]
[1759789873536,3.8303,234.88,234.78,7.85]
[1759789873740,21.56682779,234.89,234.78,7.85]
[1759789874137,21.56682779,234.89,234.76,3.5266442]
[1759789874138,67.5346,234.87,234.76,3.5266442]
[1759789874436,7.95,234.84,234.74,7.85]
[1759789875442,7.95,234.84,234.74,11.3766442]
[1759789875734,7.95,234.84,234.75,7.85]
[1759789875939,7.95,234.84,234.76,3.5266442]
[1759789876138,7.95,234.84,234.77,7.85]
[1759789877132,7.95,234.84,234.75,3.5266442]
[1759789877133,2.39752105,234.83,234.75,3.5266442]
[1759789877332,7.95,234.82,234.73,11.3766442]
[1759789878141,7.95,234.82,234.75,3.5266442]
[1759789878538,6.22862105,234.83,234.76,7.66]
[1759789878743,6.22862105,234.83,234.76,11.1866442]
[1759789879745,6.22862105,234.83,234.76,7.66]
[1759789879945,6.22862105,234.83,234.76,11.1866442]
[1759789880139,11.4206,234.86,234.76,11.1866442]
[1759789880741,7.59,234.86,234.76,11.1866442]
[1759789881147,7.59,234.86,234.76,7.66]
[1759789881644,7.59,234.86,234.76,11.1866442]
[1759789882045,3.831,234.83,234.76,7.66]
[1759789882238,11.421,234.83,234.76,7.66]
[1759789882643,3.8314,234.81,234.76,7.66]
[1759789882946,3.8314,234.81,234.71,8.5581632]
[1759789882947,3.8314,234.81,234.73,3.5266442]
[1759789884245,3.8317,234.79,234.73,3.5266442]
[1759789884449,3.8317,234.79,234.72,11.1866442]
[1759789885842,3.8317,234.79,234.72,7.66]
[1759789886449,3.8319,234.78,234.72,7.66]
[1759789886750,7.59,234.78,234.71,3.5266442]
[1759789887046,9.98752105,234.75,234.68,7.66]
[1759789887246,7.59,234.74,234.67,3.5266442]
[1759789887449,7.59,234.74,234.65,3.5266442]
[1759789887851,7.59,234.74,234.63,7.66]
[1759789887852,2.39752105,234.71,234.64,3.5266442]
[1759789888050,7.59,234.7,234.63,7.66]
[1759789888655,7.59,234.7,234.63,11.1866442]
[1759789890350,7.59,234.7,234.63,7.66]
[1759789890551,11.4232,234.7,234.63,7.66]
[1759789892055,7.59,234.7,234.63,7.66]
[1759789894760,7.59,234.7,234.62,3.5266442]
[1759789895559,3.8333,234.69,234.62,3.5266442]
[1759789895854,7.59,234.7,234.61,3.5266442]
[1759789896055,2.39752105,234.71,234.59,7.66]
[1759789896056,2.39752105,234.67,234.59,11.1866442]
[1759789897664,6.23112105,234.67,234.59,11.1866442]
[1759789897961,7.71,234.66,234.59,11.1866442]
[1759789898154,7.71,234.66,234.59,7.66]
[1759789898550,7.71,234.66,234.55,373.7252632]
[1759789898551,7.71,234.66,234.57,3.5266442]
[1759789899157,3.8344,234.63,234.57,3.5266442]
[1759789900358,11.5438,234.66,234.57,3.5266442]
[1759789900554,7.71,234.66,234.57,3.5266442]
[1759789902155,7.71,234.66,234.56,3.5266442]
[1759789902664,3.8342,234.64,234.56,3.5266442]
[1759789902864,7.71,234.66,234.56,3.5266442]
[1759789904567,3.8344,234.63,234.56,3.5266442]
[1759789905962,7.71,234.62,234.55,70.2466442]
[1759789906162,7.71,234.62,234.55,59.12]
[1759789906565,7.71,234.62,234.52,3.5266442]
[1759789906971,7.71,234.58,234.52,3.5266442]
[1759789907169,3.8356,234.55,234.51,11.1266442]
[1759789907363,3.8356,234.55,234.51,7.6]
[1759789908270,11.2559,234.54,234.49,94.9766442]
[1759789908464,62.05322105,234.59,234.49,94.9766442]
[1759789908667,7.42,234.57,234.49,84.2]
[1759789908868,11.2564,234.51,234.46,3.5266442]
[1759789909071,7.42,234.5,234.46,3.5266442]
[1759789909266,7.42,234.5,234.45,10.7766442]
[1759789909467,3.8359,234.53,234.45,10.7766442]
[1759789910672,3.8362,234.52,234.45,10.7766442]
[1759789911273,7.42,234.54,234.46,7.25]
[1759789912270,7.42,234.58,234.46,7.25]
[1759789912464,7.42,234.58,234.47,7.25]
[1759789912669,7.42,234.58,234.48,7.25]
[1759789912970,2.39752105,234.61,234.44,4.7252632]
[1759789912971,3.8349,234.59,234.5,7.25]
[1759789913573,6.23212105,234.61,234.51,3.8362]
[1759789913771,6.23212105,234.61,234.52,7.25]
[1759789913972,2.39752105,234.61,234.52,7.25]
[1759789914569,16.90131012,234.62,234.52,7.25]
[1759789915568,3.8349,234.59,234.52,7.25]
[1759789917077,3.8346,234.61,234.52,7.25]
[1759789917274,16.90131012,234.62,234.52,7.25]
[1759789918678,16.90131012,234.62,234.52,11.0859]
[1759789918972,16.90131012,234.62,234.53,7.25]
[1759789919172,16.90131012,234.62,234.53,10.7766442]
[1759789919378,20.73591012,234.62,234.53,10.7766442]
[1759789920681,20.73591012,234.62,234.53,14.6123442]
[1759789921581,2.39752105,234.65,234.56,7.25]
[1759789921582,3.834,234.65,234.56,7.25]
[1759789921780,2.39752105,234.71,234.56,34.07]
[1759789921977,2.39752105,234.71,234.58,7.25]
[1759789922383,7.42,234.7,234.59,7.25]
[1759789922784,7.42,234.7,234.58,3.5266442]
[1759789922989,11.2541,234.65,234.56,10.7766442]
[1759789923690,11.2541,234.65,234.56,7.25]
[1759789923691,7.42,234.65,234.56,7.25]
[1759789923887,7.42,234.63,234.54,3.5266442]
[1759789924192,3.835,234.59,234.52,10.7766442]
[1759789924391,3.835,234.59,234.53,3.5266442]
[1759789924791,3.8352,234.58,234.53,3.5266442]
[1759789924989,3.8352,234.58,234.52,7.25]
[1759789924990,2.39752105,234.6,234.52,7.25]
[1759789925291,1.53597407,234.58,234.52,3.5266442]
[1759789925490,7.42,234.59,234.52,3.5266442]
[1759789925990,3.8352,234.58,234.52,3.5266442]
[1759789926491,7.42,234.59,234.52,3.5266442]
[1759789926887,7.42,234.63,234.53,10.7766442]
[1759789927093,8.95597407,234.63,234.55,7.25]
[1759789927392,8.95597407,234.63,234.55,10.7766442]
[1759789927688,3.8348,234.6,234.55,10.7766442]
[1759789928192,1.53597407,234.66,234.56,10.7766442]
[1759789928392,5.36977407,234.66,234.57,3.5266442]
[1759789928893,1.53597407,234.66,234.58,3.5266442]
[1759789929393,1.53597407,234.66,234.59,3.5266442]
[1759789929587,1.53597407,234.66,234.59,10.7766442]
[1759789929792,1.53597407,234.66,234.6,3.5266442]
[1759789930292,1.53597407,234.66,234.61,3.5266442]
[1759789930293,5.36977407,234.66,234.61,3.5266442]
[1759789930594,5.36977407,234.66,234.62,7.25]
[1759789932293,5.36977407,234.66,234.62,10.7766442]
[1759789932495,3.8334,234.69,234.62,3.5266442]
[1759789932697,1.53597407,234.69,234.62,3.5266442]
[1759789933592,3.8335,234.68,234.62,3.5266442]
[1759789933793,3.8335,234.68,234.62,3.56147767]
[1759789934096,1.53597407,234.69,234.64,3.56147767]
[1759789934396,1.53597407,234.69,234.65,7.25]
[1759789935191,7.42,234.71,234.65,7.25]
[1759789935391,1.53597407,234.72,234.67,3.56147767]
[1759789935593,1.53597407,234.72,234.52,59.6704]
[1759789935594,1.53597407,234.69,234.65,3.56147767]
[1759789935793,1.53597407,234.69,234.62,4.7252632]
[1759789935794,7.42,234.68,234.64,3.56147767]
[1759789936095,59.6179,234.74,234.63,3.56147767]
[1759789936096,8.95597407,234.66,234.63,3.56147767]
[1759789936396,8.95597407,234.66,234.62,3.56147767]
[1759789936999,1.53597407,234.63,234.61,3.56147767]
[1759789937196,59.6356,234.67,234.58,4.7252632]
[1759789937197,1.53597407,234.62,234.58,3.56147767]
[1759789937397,8.95597407,234.59,234.57,3.56147767]
[1759789938098,8.95597407,234.59,234.56,3.56147767]
[1759789939595,7.43,234.66,234.58,3.56147767]
[1759789939799,7.43,234.66,234.6,3.56147767]
[1759789939800,1.53597407,234.65,234.6,3.56147767]
[1759789939999,1.53597407,234.65,234.61,11.24147767]
[1759789940803,8.96597407,234.66,234.61,7.68]
[1759789940999,7.43,234.65,234.61,7.68]
[1759789941401,7.43,234.65,234.61,11.24147767]
[1759789942705,11.2641,234.65,234.61,11.24147767]
[1759789943705,3.8342,234.64,234.61,7.68]
[1759789944101,1.53597407,234.63,234.59,3.56147767]
[1759789944298,3.8347,234.61,234.59,3.56147767]
[1759789944499,3.8347,234.61,234.57,11.24147767]
[1759789944704,7.43,234.62,234.57,11.24147767]
[1759789945405,7.43,234.62,234.58,7.68]
[1759789945605,3.8349,234.6,234.58,7.68]
[1759789946201,3.8344,234.62,234.58,7.68]
[1759789946402,3.8344,234.62,234.58,11.24147767]
[1759789946607,3.8344,234.62,234.59,7.68]
[1759789947207,3.8347,234.61,234.58,3.56147767]
[1759789948303,3.8347,234.61,234.58,11.24147767]
[1759789948506,3.8347,234.61,234.59,7.68]
[1759789948709,3.8347,234.61,234.58,3.56147767]
[1759789949012,1.53597407,234.69,234.59,1.53597407]
[1759789949211,1.53597407,234.69,234.63,11.24353177]
[1759789949512,5.36927407,234.69,234.63,11.24353177]
[1759789949699,5.36927407,234.69,234.65,7.68]
[1759789950404,3.8333,234.69,234.64,3.56353177]
[1759789950606,3.8333,234.69,234.6,3.8346]
[1759789950607,5.36887407,234.72,234.66,7.68]
[1759789950806,5.36887407,234.72,234.66,11.24353177]
[1759789951010,8.96597407,234.75,234.66,11.24353177]
[1759789951208,3.8326,234.74,234.66,11.24353177]
[1759789951801,8.96597407,234.75,234.66,11.24353177]
[1759789952007,8.96597407,234.75,234.68,3.56353177]
[1759789953812,12.79837407,234.75,234.68,3.56353177]
[1759789955814,8.96597407,234.75,234.68,3.56353177]
[1759789957216,3.8327,234.73,234.68,3.56353177]
[1759789957408,8.97597407,234.75,234.68,3.55685399]
[1759789958615,3.8329,234.72,234.68,11.54685399]
[1759789959116,7.44,234.72,234.68,7.99]
[1759789959710,11.2728,234.72,234.68,7.99]
[1759789962415,11.2728,234.72,234.67,3.55685399]
[1759789962416,1.53597407,234.72,234.67,3.55685399]
[1759789962616,1.53597407,234.69,234.64,3.55685399]
[1759789962815,7.44,234.68,234.64,3.55685399]
[1759789963016,7.44,234.68,234.63,11.54685399]
[1759789963211,5.36927407,234.69,234.64,3.55685399]
[1759789963514,1.53597407,234.72,234.65,11.54685399]
[1759789964215,5.36887407,234.72,234.65,11.54685399]
[1759789964620,1.53597407,234.72,234.65,11.54685399]
[1759789965523,3.8331,234.71,234.65,11.54685399]
[1759789966226,3.8331,234.71,234.66,3.55685399]
[1759789966521,3.8331,234.71,234.67,7.99]
[1759789968025,3.8326,234.73,234.67,7.99]
[1759789972329,3.8329,234.72,234.67,11.54685399]
[1759789972630,3.8329,234.72,234.67,3.55685399]
[1759789972831,3.8329,234.72,234.68,7.62]
[1759789974228,3.8329,234.72,234.67,3.55685399]
[1759789974531,3.8329,234.72,234.68,11.17685399]
[1759789976530,3.8329,234.72,234.69,7.62]
[1759789976725,3.8323,234.75,234.69,7.62]
[1759789976926,1.53597407,234.78,234.72,3.55685399]
[1759789977433,7.8,234.79,234.73,7.62]
[1759789977633,1.53597407,234.81,234.73,7.62]
[1759789978339,3.8319,234.78,234.73,7.62]
[1759789978638,3.8319,234.78,234.72,11.17685399]
[1759789979639,3.8321,234.77,234.73,7.62]
[1759789979832,7.8,234.77,234.73,7.62]
[1759789980033,7.8,234.8,234.73,7.62]
[1759789980234,3.8321,234.77,234.73,7.62]
[1759789981333,1.53597407,234.78,234.71,3.55685399]
[1759789981638,1.53597407,234.75,234.68,3.55685399]
[1759789981838,59.6081,234.78,234.61,1.53597407]
[1759789981839,7.8,234.71,234.67,11.17685399]
[1759789982039,7.8,234.71,234.67,3.55685399]
[1759789982535,3.8332,234.7,234.67,3.55685399]
[1759789983141,3.8334,234.68,234.67,3.55685399]
[1759789983440,9.33597407,234.72,234.65,11.17685399]
[1759789984135,1.53597407,234.75,234.67,3.55685399]
[1759789985232,1.53597407,234.72,234.67,3.55685399]
[1759789985439,7.8,234.68,234.64,3.55685399]
[1759789985637,1.53597407,234.69,234.64,3.55685399]
[1759789985843,3.8334,234.68,234.64,11.17685399]
[1759789986037,3.8334,234.68,234.65,7.62]
[1759789986440,3.8334,234.68,234.65,11.17685399]
[1759789987539,3.8334,234.68,234.66,7.62]
[1759789987740,3.8334,234.68,234.65,3.55685399]
[1759789987944,3.8334,234.68,234.65,11.17685399]
[1759789990345,2.39710794,234.75,234.65,11.17685399]
[1759789990546,10.19710794,234.77,234.67,3.55685399]
[1759789990744,10.19710794,234.77,234.68,3.55685399]
[1759789991546,10.19710794,234.77,234.69,11.17685399]
[1759789991747,10.19710794,234.77,234.7,3.55685399]
[1759789991950,3.8318,234.78,234.7,3.55685399]
[1759789992249,10.19710794,234.81,234.72,3.55685399]
[1759789992551,10.19710794,234.81,234.73,3.55685399]
[1759789992848,59.6019,234.8,234.72,3.55685399]
[1759789993351,59.6019,234.8,234.73,3.55685399]
[1759789993550,3.8324,234.75,234.73,3.55685399]
[1759789995352,7.8,234.74,234.73,3.55685399]
[1759789995653,11.6326,234.73,234.72,3.55685399]
[1759789995851,2.39710794,234.73,234.69,5.399e-05]
[1759789996052,2.39710794,234.73,234.68,5.399e-05]
[1759789996646,7.8,234.72,234.68,5.399e-05]
[1759789996844,11.633,234.71,234.68,5.399e-05]
[1759789997053,7.8,234.71,234.68,5.399e-05]
[1759789997852,3.8332,234.7,234.68,5.399e-05]
[1759789998257,7.8,234.71,234.64,12.3452632]
[1759789998461,3.8331,234.7,234.64,12.3452632]
[1759789998757,3.8331,234.7,234.65,4.7252632]
[1759789999058,3.8331,234.7,234.66,7.63]
[1759790000057,3.8328,234.72,234.66,12.3552632]
[1759790000245,7.76,234.76,234.66,12.3552632]
[1759790000445,67.3724,234.76,234.66,12.3552632]
[1759790000649,2.39710794,234.73,234.66,4.7252632]
[1759790000851,2.39710794,234.73,234.65,4.7252632]
[1759790001052,62.01730794,234.73,234.65,4.7252632]
[1759790001357,10.15710794,234.69,234.63,4.7252632]
[1759790001952,3.8335,234.68,234.63,4.7252632]
[1759790002150,3.8335,234.68,234.64,7.63]
[1759790002357,10.15710794,234.73,234.64,7.63]
[1759790002654,3.8332,234.7,234.64,12.3552632]
[1759790007358,3.8334,234.69,234.65,7.63]
[1759790007554,3.8334,234.69,234.64,4.7252632]
[1759790008061,3.8334,234.69,234.65,7.63]
[1759790008256,11.5935,234.68,234.64,4.7252632]
[1759790008558,11.5935,234.68,234.64,7.63]
[1759790008855,3.8331,234.7,234.64,4.7252632]
[1759790009556,3.8334,234.69,234.64,4.7252632]
[1759790009757,3.8334,234.69,234.65,4.7252632]
[1759790010057,3.8334,234.69,234.66,7.63]
[1759790012464,11.5935,234.68,234.65,4.7252632]
[1759790012659,7.76,234.78,234.66,7.63]
[1759790012859,2.39710794,234.77,234.68,7.63]
[1759790014558,7.76,234.76,234.68,7.63]
[1759790014866,67.3724,234.76,234.67,4.7252632]
[1759790015564,3.833,234.71,234.67,12.3552632]
[1759790016368,3.833,234.71,234.68,7.65]
[1759790016663,11.5532,234.7,234.66,12.3752632]
[1759790016962,7.72,234.7,234.66,12.3752632]
[1759790017262,11.5534,234.69,234.65,4.7252632]
[1759790017458,7.72,234.72,234.65,4.7252632]
[1759790017661,3.8331,234.7,234.65,4.7252632]
[1759790017861,7.72,234.72,234.66,7.65]
[1759790018767,2.39710794,234.73,234.66,12.3752632]
[1759790019568,3.833,234.71,234.66,12.3752632]
[1759790019869,3.833,234.71,234.67,4.7252632]
[1759790020265,3.833,234.71,234.68,7.65]
[1759790020664,3.833,234.71,234.67,4.7252632]
[1759790021461,3.8326,234.74,234.68,7.65]
[1759790021666,3.8326,234.74,234.68,12.3752632]
[1759790023469,3.8326,234.74,234.7,7.65]
[1759790023666,3.8326,234.74,234.69,4.7252632]
[1759790023866,3.8326,234.74,234.7,7.65]
[1759790024367,3.8326,234.74,234.69,4.7252632]
[1759790024965,3.8326,234.74,234.7,7.65]
[1759790025170,3.8326,234.74,234.69,4.7252632]
[1759790026168,3.8326,234.74,234.7,7.65]
[1759790026672,3.8326,234.74,234.69,4.7252632]
[1759790027174,3.8326,234.74,234.7,7.65]
[1759790027873,3.8326,234.74,234.69,4.7252632]
[1759790028172,3.8326,234.74,234.7,7.25]
[1759790028574,3.8326,234.74,234.69,4.7252632]
[1759790029376,3.8326,234.74,234.7,7.25]
[1759790029966,3.8326,234.74,234.69,4.7252632]
[1759790030371,3.8326,234.74,234.7,7.25]
[1759790030569,3.8326,234.74,234.69,4.7252632]
[1759790030977,3.8326,234.74,234.7,7.25]
[1759790031380,3.8326,234.74,234.69,4.7252632]
[1759790031571,3.8326,234.74,234.7,7.25]
[1759790031776,3.8326,234.74,234.69,4.7252632]
[1759790032478,3.8326,234.74,234.7,7.25]
[1759790032681,3.8326,234.74,234.69,4.7252632]
[1759790032878,3.8326,234.74,234.7,7.25]
[1759790033183,3.8326,234.74,234.69,4.7252632]
[1759790033480,3.8326,234.74,234.7,7.25]
[1759790033678,3.8326,234.74,234.69,4.7252632]
[1759790033884,3.8326,234.74,234.7,7.25]
[1759790034083,3.8326,234.74,234.69,4.7252632]
[1759790034380,3.8326,234.74,234.7,7.25]
[1759790034572,3.8326,234.74,234.69,4.7252632]
[1759790034971,3.8326,234.74,234.7,7.25]
[1759790035372,3.8326,234.74,234.69,4.7252632]
[1759790035578,3.8326,234.74,234.7,7.25]
[1759790035774,3.8326,234.74,234.69,4.7252632]
[1759790036584,11.6126,234.74,234.7,7.25]
[1759790036883,11.6126,234.74,234.69,4.7252632]
[1759790037273,11.6126,234.74,234.7,7.25]
[1759790037884,11.6126,234.74,234.69,4.7252632]
[1759790038086,11.6126,234.74,234.7,7.25]
[1759790038489,11.6126,234.74,234.69,4.7252632]
[1759790038782,11.6126,234.74,234.7,7.25]
[1759790039185,7.78,234.73,234.69,4.7252632]
[1759790039386,7.78,234.73,234.69,11.9752632]
[1759790039686,7.78,234.73,234.7,7.25]
[1759790040086,3.8322,234.76,234.7,7.25]
[1759790040385,87.9611,234.86,234.69,4.7252632]
[1759790040386,18.08038353,234.83,234.72,4.7252632]
[1759790040684,7.78,234.88,234.79,11.9752632]
[1759790041586,0.74130879,234.89,234.77,4.7252632]
[1759790041587,67.3701,234.85,234.77,4.7252632]
[1759790041886,7.78,234.81,234.74,11.9752632]
[1759790042279,11.6118,234.79,234.74,4.7252632]
[1759790042483,7.78,234.83,234.75,7.25]
[1759790042883,3.8313,234.81,234.75,7.25]
[1759790046096,3.8313,234.81,234.75,11.9752632]
[1759790046695,7.78,234.84,234.75,7.25]
[1759790046997,7.78,234.84,234.74,4.7252632]
[1759790047598,3.8316,234.8,234.74,4.7252632]
[1759790048301,3.8316,234.8,234.73,4.7252632]
[1759790049000,3.8311,234.83,234.74,7.25]
[1759790049194,5.36351635,234.83,234.74,11.9752632]
[1759790049398,5.36351635,234.83,234.75,7.25]
[1759790049897,7.78,234.84,234.78,7.25]
[1759790050404,3.8306,234.86,234.78,7.25]
[1759790050405,3.8306,234.86,234.78,11.9752632]
[1759790051406,3.8306,234.86,234.78,7.25]
[1759790055810,3.8306,234.86,234.8,3.54995205]
[1759790056810,1.53241635,234.87,234.8,3.54995205]
[1759790056811,7.78,234.83,234.8,3.54995205]
[1759790057310,7.78,234.83,234.79,3.54995205]
[1759790057503,3.8309,234.84,234.79,10.79995205]
[1759790057709,7.78,234.83,234.78,3.54995205]
[1759790057910,7.78,234.83,234.77,3.54995205]
[1759790058106,1.53241635,234.84,234.78,3.54995205]
[1759790058312,1.53241635,234.84,234.77,3.54995205]
[1759790058313,9.14241635,234.84,234.77,3.54995205]
[1759790059015,3.8313,234.82,234.77,3.54995205]
[1759790059214,3.8313,234.82,234.78,7.62]
[1759790059515,3.8313,234.82,234.79,7.62]
[1759790059714,3.8313,234.82,234.77,3.54995205]
[1759790059715,7.61,234.81,234.77,3.54995205]
[1759790059909,7.61,234.81,234.77,11.16995205]
[1759790060112,7.61,234.8,234.77,3.54995205]
[1759790061015,7.61,234.8,234.77,11.16995205]
[1759790061211,7.61,234.8,234.77,3.54995205]
[1759790061416,1.53241635,234.81,234.75,3.54995205]
[1759790062018,7.61,234.78,234.75,3.54995205]
[1759790062620,7.61,234.76,234.75,3.54995205]
[1759790062920,7.61,234.76,234.74,3.54995205]
[1759790064324,9.14241635,234.75,234.74,3.54995205]
[1759790064625,7.61,234.74,234.7,19.39131736]
[1759790064921,7.61,234.74,234.7,27.01131736]
[1759790065413,1.53241635,234.75,234.7,27.01131736]
[1759790065612,11.4424,234.74,234.7,27.01131736]
[1759790065816,7.61,234.74,234.71,3.54995205]
[1759790066117,1.53241635,234.75,234.72,7.62]
[1759790066318,1.53241635,234.75,234.72,11.16995205]
[1759790066518,1.53241635,234.75,234.73,7.62]
[1759790066721,1.53241635,234.75,234.72,3.54995205]
[1759790067122,1.53241635,234.75,234.72,11.16995205]
[1759790067523,3.8321,234.77,234.74,7.62]
[1759790069119,3.8321,234.77,234.73,3.54995205]
[1759790069322,1.53241635,234.75,234.72,3.54995205]